fUSD/lending_fUSD_20250824
["ID","MTS","AMOUNT","RATE_DAILY","PERIOD"]
[381132150,1756065039253,-1000.0,0.00020871,2]
[381132152,1756065039262,-150.0,0.00020872,2]
[381132154,1756065039272,-150.0,0.00020883,4]
[381132156,1756065039281,-871.51248216,0.00020891,2]
[381132157,1756065039291,-150.0,0.00020895,4]
[381132158,1756065039302,-466.55,0.00020898,2]
[381132160,1756065039311,-6012.72488454,0.00020909,2]
[381132162,1756065039321,-150.0,0.00020911,4]
[381132164,1756065039331,-150.0,0.00020918,4]
[381132166,1756065039340,-150.0,0.00020927,4]
[381132168,1756065039350,-150.0,0.00020952,4]
[381132170,1756065039359,-150.0,0.00020952,4]
[381132172,1756065039368,-150.0,0.00020952,4]
[381132175,1756065039378,-6235.19570527,0.00020964,2]
[381132178,1756065039388,-150.0,0.00020969,4]
[381132181,1756065039397,-151.0,0.00020969,2]
[381132184,1756065039406,-14508.20700768,0.00020969,2]
[381132187,1756065039415,-150.0,0.00020971,4]
[381132190,1756065039425,-1425.0,0.0002098,2]
[381132193,1756065039434,-150.0,0.00020995,4]
[381132196,1756065039444,-2293.37818381,0.00020995,2]
[381132198,1756065039453,-1425.0,0.00020999,2]
[381132200,1756065039464,-150.0,0.00021008,2]
[381132201,1756065039473,-359.45,0.00021009,2]
[381132204,1756065039483,-150.0,0.00021015,4]
[381132206,1756065039493,-150.0,0.00021015,4]
[381132207,1756065039502,-150.0,0.00021015,4]
[381132209,1756065039511,-150.0,0.00021015,4]
[381132211,1756065039521,-6465.89794637,0.00021019,2]
[381132213,1756065039530,-150.0,0.0002102,2]
[381132215,1756065039539,-150.0,0.00021026,4]
[381132217,1756065039548,-1000.0,0.00021027,2]
[381132219,1756065039559,-150.0,0.00021039,4]
[381132221,1756065039569,-1653.79,0.00021048,2]
[381132223,1756065039578,-150.0,0.00021052,2]
[381132225,1756065039587,-150.0,0.00021059,4]
[381132227,1756065039596,-150.0,0.0002107,4]
[381132229,1756065039606,-6705.13617038,0.00021074,2]
[381132231,1756065039615,-1000.0,0.0002108,2]
[381132233,1756065039624,-150.0,0.00021084,4]
[381132235,1756065039634,-22780.02615198,0.00021084,2]
[381132237,1756065039643,-1000.0,0.00021088,2]
[381132239,1756065039652,-150.0,0.00021094,4]
[381132241,1756065039661,-1053.57264914,0.00021096,2]
[381132243,1756065039671,-150.0,0.00021102,2]
[381132245,1756065039680,-150.0,0.00021102,4]
[381132247,1756065039689,-150.0,0.00021109,4]
[381132249,1756065039699,-1745.5026,0.00021116,2]
[381132251,1756065039708,-150.0,0.00021116,2]
[381132253,1756065039719,-1000.0,0.00021118,2]
[381132255,1756065039728,-359.45,0.00021119,2]
[381132257,1756065039738,-1425.0,0.00021123,2]
[381132259,1756065039747,-6953.22620868,0.00021129,2]
[381132261,1756065039756,-14508.20700768,0.0002113,2]
[381132263,1756065039766,-422.70366197,0.00021133,2]
[381132265,1756065039775,-1425.0,0.00021139,2]
[381132267,1756065039785,-150.0,0.00021142,4]
[381132269,1756065039795,-150.0,0.00021142,2]
[381132271,1756065039806,-1000.0,0.00021143,2]
[381132273,1756065039815,-150.0,0.00021146,4]
[381132275,1756065039825,-150.0,0.00021161,4]
[381132277,1756065039834,-150.0,0.00021161,4]
[381132279,1756065039843,-1425.0,0.00021168,2]
[381132281,1756065039852,-1000.0,0.00021178,2]
[381132283,1756065039861,-7210.49557841,0.00021184,2]
[381132285,1756065039870,-359.45,0.00021186,2]
[381132287,1756065039879,-1425.0,0.00021188,2]
[381132289,1756065039888,-1425.0,0.00021189,2]
[381132291,1756065039897,-1425.0,0.00021189,2]
[381132293,1756065039910,-150.0,0.0002119,4]
[381132295,1756065039919,-150.0,0.00021194,4]
[381132297,1756065039929,-22780.02615194,0.00021196,2]
[381132299,1756065039939,-1000.0,0.00021196,2]
[381132301,1756065039948,-150.0,0.00021199,4]
[381132303,1756065039958,-1425.0,0.00021209,2]
[381132305,1756065039968,-4141.0,0.00021212,2]
[381132307,1756065039978,-664.82136588,0.00021216,10]
[381132309,1756065039987,-38510.1303172,0.00021216,2]
[381132311,1756065039996,-3804.7532797,0.00021216,2]
[381132313,1756065040006,-153181.4403312,0.00021216,2]
[381132315,1756065040015,-936.390836,0.00021216,2]
[381132317,1756065040025,-871.61592526,0.00021229,2]
[381132319,1756065040034,-1000.0,0.00021233,2]
[381132321,1756065040044,-150.0,0.00021234,4]
[381132323,1756065040053,-150.0,0.00021234,4]
[381132325,1756065040064,-150.0,0.00021234,4]
[381132327,1756065040074,-7477.28391481,0.00021239,2]
[381132329,1756065040083,-329.51214286,0.00021244,2]
[381132332,1756065040093,-150.0,0.0002125,2]
[381132335,1756065040103,-329.51214286,0.0002125,2]
[381132338,1756065040112,-150.0,0.00021257,4]
[381132340,1756065040122,-329.51214286,0.00021257,2]
[381132342,1756065040131,-493.0369,0.00021259,2]
[381132344,1756065040143,-1746.97106152,0.00021259,2]
[381132349,1756065040153,-871.61592526,0.00021263,2]
[381132353,1756065040163,-472.9999,0.00021264,2]
[381132357,1756065040172,-150.0,0.00021265,4]
[381132361,1756065040181,-150.0,0.00021265,4]
[381132363,1756065040191,-150.0,0.00021265,4]
[381132366,1756065040200,-150.0,0.00021272,2]
[381132369,1756065040209,-150.0,0.00021277,4]
[381132372,1756065040219,-160.0,0.00021278,2]
[381132375,1756065040228,-458.63746581,0.00021278,2]
[381132378,1756065040238,-186.1911267,0.00021279,2]
[381132381,1756065040248,-212.11701231,0.0002128,2]
[381132384,1756065040258,-871.61592526,0.0002128,2]
[381132387,1756065040267,-51023.52236405,0.00021281,2]
[381132393,1756065040291,-4044.27084939,0.00021281,2]
[381132396,1756065040303,-382.69249916,0.00021281,2]
[381132399,1756065040314,-817.38777225,0.00021281,2]
[381132401,1756065040326,-2269.0,0.00021281,2]
[381132403,1756065040337,-7038.48633131,0.00021281,2]
[381132417,1756065040459,-1198.1860162,0.00021281,2]
[381132426,1756065040541,-2185.88543802,0.00021281,2]
[381132429,1756065040553,-272.765007,0.00021281,2]
[381132431,1756065040565,-17627.19617258,0.00021281,2]
[381132433,1756065040576,-1297.64351898,0.00021281,2]
[381132440,1756065040637,-2489.46,0.00021281,2]
[381132443,1756065040648,-67768.2132,0.00021281,2]
[381132445,1756065040659,-1217.90063364,0.00021281,2]
[381132447,1756065040671,-783.49838692,0.00021281,2]
[381132449,1756065040680,-2236.90899708,0.00021281,2]
[381132451,1756065040692,-1148.19535292,0.00021281,2]
[381132453,1756065040701,-458.97124143,0.00021281,2]
[381132455,1756065040711,-329.51214286,0.00021281,2]
[381132457,1756065040720,-2878.32126279,0.00021282,2]
[381132459,1756065040732,-357.0363872,0.00021282,2]
[381132462,1756065040743,-4484.9779279,0.00021282,2]
[381132489,1756065040755,-177164.79860383,0.00021282,2]
[381132492,1756065041019,-6188.8484,0.00021282,2]
[381132494,1756065041029,-150.0,0.00021282,4]
[381132496,1756065041039,-329.51214286,0.00021286,2]
[381132499,1756065041049,-7728.57395443,0.00021289,2]
[381132501,1756065041063,-23373.83508265,0.0002129,2]
[381132506,1756065041111,-810.72850976,0.0002129,2]
[381132831,1756065043648,-151.0,0.00016954,2]
[381132834,1756065043657,-646.31968855,0.00020752,2]
[381132837,1756065043668,-247.68031145,0.00020752,2]
[381132840,1756065043677,-154.83408854,0.00020752,2]
[381132843,1756065043688,-40.87491146,0.00020752,2]
[381132846,1756065043697,-195.708,0.00020752,2]
[381132849,1756065043707,-386.35108854,0.00020834,2]
[381132852,1756065043725,-1668.58891146,0.00020834,2]
[381132854,1756065043740,-2054.94,0.00021206,2]
[381132856,1756065043750,-1962.96054388,0.0002129,2]
[381132858,1756065043762,-13558.8493141,0.0002129,2]
[381132861,1756065043774,-14456.0736822,0.0002129,2]
[381132863,1756065043785,-4225.86490795,0.0002129,2]
[381132866,1756065043796,-4507.24410488,0.0002129,2]
[381132869,1756065043810,-683.11889568,0.0002129,2]
[381132872,1756065043820,-2125.62786432,0.0002129,2]
[381132876,1756065043831,-4812.129296,0.0002129,2]
[381132880,1756065043843,-3903.900315,0.0002129,2]
[381132883,1756065043854,-3666.54953236,0.0002129,2]
[381132887,1756065043866,-56.98677764,0.0002129,2]
[381132892,1756065043878,-443.01322236,0.0002129,2]
[381132896,1756065043889,-500.0,0.0002129,2]
[381132902,1756065043900,-641.98385951,0.0002129,2]
[381132906,1756065043909,-809.72565413,0.00021291,2]
[381132910,1756065043921,-208.51791529,0.00021291,2]
[381132914,1756065043930,-1253.68006321,0.00021291,2]
[381132918,1756065043943,-2797.6752175,0.00021291,2]
[381132922,1756065043955,-55171.9881178,0.00021291,2]
[381132926,1756065043967,-24200.544706,0.00021291,2]
[381132933,1756065043979,-56380.7184155,0.00021291,2]
[381132940,1756065044000,-685.02973532,0.00021291,2]
[381132943,1756065044013,-3216.13058712,0.00021291,2]
[381132961,1756065044108,-5684.4,0.00021291,2]
[381132964,1756065044119,-287.33488781,0.00021291,2]
[381132967,1756065044131,-925.82080177,0.00021291,2]
[381132971,1756065044145,-297.52310819,0.00021291,2]
[381132975,1756065044156,-1273.68722129,0.00021291,2]
[381132978,1756065044168,-597.0,0.00021291,2]
[381132981,1756065044180,-1268.43739722,0.00021291,2]
[381132985,1756065044192,-22939.83278097,0.00021291,2]
[381132989,1756065044204,-1696.1123,0.00021291,2]
[381132992,1756065044216,-2550.65872182,0.00021291,2]
[381132995,1756065044228,-3082.41419451,0.00021291,2]
[381133000,1756065044250,-576.14592569,0.00021291,2]
[381133003,1756065044260,-7321.64397431,0.00021292,2]
[381133021,1756065044347,-298.32287187,0.00021292,2]
[381133024,1756065044359,-435.41348242,0.00021292,2]
[381133028,1756065044371,-6511.83200591,0.00021292,2]
[381133031,1756065044383,-8618.50952878,0.00021292,2]
[381133034,1756065044393,-150.0,0.00021293,4]
[381133037,1756065044404,-1386.52573534,0.00021294,2]
[381133040,1756065044414,-7728.57395443,0.00021295,2]
[381133043,1756065044424,-150.0,0.00021297,2]
[381133046,1756065044434,-9939.28835946,0.00021297,2]
[381133050,1756065044445,-3943.2046694,0.00021297,2]
[381133053,1756065044458,-736.84196217,0.00021297,2]
[381133055,1756065044469,-22068.176,0.00021297,2]
[381133077,1756065044578,-3254.57,0.00021297,2]
[381133221,1756065045407,-402.172414,0.0001363,2]
[381133223,1756065045416,-458.97124143,0.00021281,2]
[381133225,1756065045426,-14970.55023971,0.00021297,2]
[381133227,1756065045435,-1000.0,0.000213,2]
[381133229,1756065045445,-871.61592526,0.00021306,2]
[381133231,1756065045454,-150.0,0.00021307,4]
[381133233,1756065045463,-1018.24356942,0.00021307,2]
[381133234,1756065045472,-22780.02615194,0.00021308,2]
[381133235,1756065045481,-493.0369,0.00021313,2]
[381133236,1756065045490,-1018.24356942,0.00021314,2]
[381133237,1756065045500,-14877.25341321,0.00021314,2]
[381133238,1756065045509,-150.0,0.00021314,4]
[381133239,1756065045518,-5475.08211407,0.00021316,2]
[381133240,1756065045527,-343.88492661,0.00021316,2]
[381133241,1756065045537,-14877.25341321,0.00021317,2]
[381133242,1756065045546,-23185.72186329,0.00021317,2]
[381133243,1756065045555,-7728.57395443,0.00021319,2]
[381133244,1756065045565,-343.88492661,0.00021319,2]
[381133245,1756065045574,-343.88492661,0.00021319,2]
[381133246,1756065045583,-5475.08211407,0.00021321,2]
[381133247,1756065045592,-150.0,0.00021321,4]
[381133248,1756065045602,-343.88492661,0.00021323,2]
[381133249,1756065045611,-14877.25341321,0.00021325,2]
[381133250,1756065045621,-2500.0,0.00021326,2]
[381133251,1756065045631,-329.51214286,0.00021326,2]
[381133252,1756065045641,-7728.57395443,0.00021328,2]
[381133253,1756065045651,-54912.63123074,0.00021329,2]
[381133254,1756065045660,-493.0369,0.00021329,2]
[381133255,1756065045670,-1018.24356942,0.0002133,2]
[381133256,1756065045680,-106678.38094944,0.00021331,2]
[381133347,1756065046678,-363.018,0.00021331,2]
[381133350,1756065046690,-747.072,0.00021331,2]
[381133354,1756065046723,-11127.23496576,0.00021331,2]
[381133357,1756065046747,-1574.30218451,0.00021331,2]
[381133360,1756065046759,-30711.9564843,0.00021331,2]
[381133362,1756065046771,-9568.78266711,0.00021331,2]
[381133364,1756065046783,-4827.05,0.00021331,2]
[381133369,1756065046817,-584.264,0.00021331,2]
[381133420,1756065047299,-309.39030546,0.00021331,2]
[381133423,1756065047313,-565.496,0.00021331,2]
[381133426,1756065047338,-116453.41623457,0.00021331,2]
[381133428,1756065047348,-654.30759533,0.00021333,2]
[381133430,1756065047360,-22531.41426796,0.00021333,2]
[381133432,1756065047370,-871.61592526,0.00021337,2]
[381133434,1756065047382,-493.0369,0.00021339,2]
[381133437,1756065047392,-150.0,0.00021343,4]
[381133439,1756065047402,-5475.08211407,0.00021344,2]
[381133441,1756065047411,-493.0369,0.00021344,2]
[381133443,1756065047421,-3747.81389271,0.00021354,2]
[381133445,1756065047433,-611.97983486,0.00021354,2]
[381133447,1756065047446,-10517.45968564,0.00021354,2]
[381133449,1756065047455,-150.0,0.00021354,2]
[381133451,1756065047466,-54912.63123074,0.00021356,2]
[381133453,1756065047476,-343.88492661,0.00021359,2]
[381133455,1756065047485,-493.0369,0.0002136,2]
[381133457,1756065047494,-10474.16729298,0.0002136,2]
[381133460,1756065047505,-89826.4366916,0.0002136,2]
[381133462,1756065047516,-9748.734,0.0002136,2]
[381133464,1756065047527,-394.3719,0.0002136,2]
[381133573,1756065048602,-1173.0,0.00020752,2]
[381133576,1756065048612,-3949.52253488,0.0002136,2]
[381133578,1756065048624,-1817.03851131,0.0002136,2]
[381133580,1756065048635,-3355.54377381,0.0002136,2]
[381133582,1756065048646,-705.36825294,0.0002136,2]
[381133585,1756065048658,-33791.0,0.0002136,2]
[381133587,1756065048669,-79660.14444973,0.0002136,2]
[381133589,1756065048681,-9056.8,0.0002136,2]
[381133592,1756065048703,-40731.2363839,0.0002136,2]
[381133594,1756065048713,-150.0,0.00021365,4]
[381133596,1756065048723,-5475.08211407,0.0002137,2]
[381133598,1756065048733,-1018.24356942,0.00021371,2]
[381133600,1756065048743,-283510.36379115,0.00021371,2]
[381133602,1756065048753,-150.0,0.00021372,4]
[381133605,1756065048763,-493.0369,0.00021372,2]
[381133607,1756065048774,-184885.13418172,0.00021374,2]
[381133609,1756065048783,-7728.57395443,0.00021376,2]
[381133611,1756065048798,-150.0,0.00021377,2]
[381133613,1756065048808,-54912.63123074,0.0002138,2]
[381133615,1756065048819,-1000.0,0.00021382,2]
[381133617,1756065048829,-2108.3089,0.00021382,2]
[381133619,1756065048839,-131936.29303583,0.00021382,2]
[381133621,1756065048852,-1232.29820122,0.00021382,2]
[381133624,1756065048864,-51716.54294467,0.00021382,2]
[381133626,1756065048874,-150.0,0.00021382,2]
[381133628,1756065048884,-7728.57395443,0.00021383,2]
[381133630,1756065048894,-23185.72186329,0.00021385,2]
[381133632,1756065048904,-7728.57395443,0.00021386,2]
[381133634,1756065048914,-54912.63123074,0.00021387,2]
[381133636,1756065048923,-1018.24356942,0.00021387,2]
[381133638,1756065048933,-5475.08211407,0.00021388,2]
[381133640,1756065048943,-871.61592526,0.0002139,2]
[381133642,1756065048954,-5475.08211407,0.00021393,2]
[381133644,1756065048963,-150.0,0.00021393,4]
[381133646,1756065048973,-329.51214286,0.00021395,2]
[381133648,1756065048983,-2167.0,0.00021396,2]
[381133650,1756065048993,-1018.24356942,0.00021396,2]
[381133652,1756065049003,-14877.25341321,0.00021396,2]
[381133654,1756065049013,-871.61592526,0.00021398,2]
[381133657,1756065049024,-343.88492661,0.00021399,2]
[381133659,1756065049034,-54912.63123074,0.000214,2]
[381133661,1756065049044,-1600.0,0.000214,7]
[381133663,1756065049057,-1425.0,0.000214,2]
[381133665,1756065049069,-1000.0,0.000214,2]
[381133667,1756065049079,-540.0,0.00021401,2]
[381133669,1756065049088,-150.0,0.00021404,4]
[381133671,1756065049099,-150.0,0.00021409,4]
[381133673,1756065049108,-1800.0,0.00021412,2]
[381133675,1756065049119,-422.70366188,0.00021419,2]
[381133677,1756065049128,-22780.02615194,0.0002142,2]
[381133679,1756065049139,-150.0,0.00021421,4]
[381133681,1756065049149,-1000.0,0.00021424,2]
[381133683,1756065049159,-1425.0,0.00021426,2]
[381133685,1756065049169,-1000.0,0.00021429,2]
[381133687,1756065049179,-150.0,0.0002143,4]
[381133689,1756065049188,-207.35,0.00021436,2]
[381133691,1756065049198,-322.79,0.00021438,2]
[381133693,1756065049208,-150.0,0.00021445,2]
[381133695,1756065049217,-1000.0,0.00021446,2]
[381133697,1756065049228,-540.0,0.00021446,2]
[381133699,1756065049238,-14508.20700768,0.0002145,2]
[381133701,1756065049248,-150.0,0.00021453,4]
[381133704,1756065049259,-150.0,0.00021453,4]
[381133706,1756065049268,-150.0,0.00021453,4]
[381133708,1756065049278,-150.0,0.00021453,4]
[381133710,1756065049288,-150.0,0.00021463,2]
[381133712,1756065049297,-207.35,0.0002147,2]
[381133714,1756065049306,-150.0,0.00021471,2]
[381133716,1756065049319,-540.0,0.00021481,2]
[381133718,1756065049328,-1038.0,0.00021482,2]
[381133720,1756065049338,-150.0,0.00021487,4]
[381133722,1756065049347,-150.0,0.00021492,4]
[381133724,1756065049356,-1048.34077198,0.00021493,2]
[381133726,1756065049366,-150.0,0.00021496,4]
[381133728,1756065049376,-3200.0,0.000215,7]
[381133730,1756065049386,-4412.0,0.000215,3]
[381133732,1756065049396,-207.35,0.00021505,2]
[381133734,1756065049405,-1425.0,0.00021508,2]
[381133736,1756065049415,-266.4235958,0.00021513,2]
[381133738,1756065049428,-150.0,0.00021526,4]
[381133741,1756065049439,-22780.02615194,0.00021532,2]
[381133743,1756065049449,-1038.0,0.0002154,2]
[381133745,1756065049459,-150.0,0.0002154,4]
[381133747,1756065049468,-540.0,0.00021542,2]
[381133749,1756065049478,-150.0,0.00021545,4]
[381133751,1756065049488,-1425.0,0.00021546,2]
[381133753,1756065049499,-1000.0,0.00021548,2]
[381133755,1756065049508,-1000.0,0.00021561,2]
[381133757,1756065049518,-540.0,0.00021563,2]
[381133759,1756065049528,-150.0,0.00021578,4]
[381133761,1756065049539,-150.0,0.00021578,4]
[381133763,1756065049549,-150.0,0.00021578,4]
[381133765,1756065049559,-1000.0,0.00021583,2]
[381133767,1756065049570,-150.0,0.00021584,4]
[381133769,1756065049580,-1000.0,0.00021586,2]
[381133771,1756065049590,-150.0,0.00021592,4]
[381133774,1756065049601,-150.0,0.00021599,4]
[381133776,1756065049611,-766.16,0.00021599,7]
[381133778,1756065049621,-1090.87,0.00021599,7]
[381133780,1756065049630,-5666.19,0.00021599,7]
[381133782,1756065049640,-4900.0,0.000216,7]
[381133784,1756065049649,-1000.0,0.000216,2]
[381133786,1756065049659,-150.0,0.00021602,2]
[381133788,1756065049670,-150.0,0.00021602,4]
[381133790,1756065049680,-1425.0,0.00021609,2]
[381133792,1756065049690,-14508.20700768,0.0002161,2]
[381133794,1756065049699,-600.0,0.00021616,2]
[381133796,1756065049710,-150.0,0.00021617,4]
[381133798,1756065049720,-152.0,0.00021624,2]
[381133800,1756065049730,-150.0,0.00021628,4]
[381133802,1756065049740,-22780.02615194,0.00021643,2]
[381133805,1756065049750,-5000.0,0.00021644,2]
[381133807,1756065049760,-1000.0,0.00021646,2]
[381133809,1756065049770,-1000.0,0.00021646,2]
[381133811,1756065049779,-1864.853,0.00021647,2]
[381133813,1756065049789,-192.973,0.00021647,2]
[381133815,1756065049799,-150.0,0.00021647,4]
[381133817,1756065049808,-150.0,0.00021648,2]
[381133819,1756065049821,-215.0,0.00021649,2]
[381133821,1756065049831,-150.0,0.0002166,4]
[381133823,1756065049841,-35837.697,0.0002166,2]
[381133825,1756065049851,-5888.0,0.0002166,2]
[381133827,1756065049861,-1000.0,0.00021661,2]
[381133829,1756065049870,-151.0,0.00021661,2]
[381133832,1756065049884,-151.0,0.00021661,2]
[381133833,1756065049895,-299.807105,0.00021661,2]
[381133834,1756065049904,-151.0,0.00021661,2]
[381133835,1756065049914,-1835.432791,0.00021661,2]
[381133836,1756065049924,-151.0,0.00021661,2]
[381133837,1756065049934,-1835.432791,0.00021661,2]
[381133838,1756065049944,-151.0,0.00021661,2]
[381133839,1756065049954,-1835.432791,0.00021661,2]
[381133840,1756065049964,-151.0,0.00021661,2]
[381133841,1756065049975,-1835.432791,0.00021661,2]
[381133842,1756065049985,-151.0,0.00021661,2]
[381133843,1756065049996,-488.686064,0.00021661,2]
[381133844,1756065050005,-488.686064,0.00021661,2]
[381133845,1756065050016,-151.0,0.00021661,2]
[381133846,1756065050025,-151.0,0.00021661,2]
[381133847,1756065050035,-488.686064,0.00021661,2]
[381133848,1756065050045,-151.0,0.00021661,2]
[381133850,1756065050056,-151.0,0.00021661,2]
[381133852,1756065050070,-488.686064,0.00021661,2]
[381133854,1756065050080,-160.510213,0.00021661,2]
[381133856,1756065050090,-151.0,0.00021661,2]
[381133858,1756065050100,-160.510213,0.00021661,2]
[381133860,1756065050111,-151.0,0.00021661,2]
[381133862,1756065050121,-160.510213,0.00021661,2]
[381133864,1756065050130,-160.510213,0.00021661,2]
[381133866,1756065050141,-252.32173,0.00021661,2]
[381133868,1756065050151,-252.32173,0.00021661,2]
[381133870,1756065050161,-252.32173,0.00021661,2]
[381133872,1756065050170,-252.32173,0.00021661,2]
[381133874,1756065050180,-151.0,0.00021661,2]
[381133876,1756065050190,-151.0,0.00021661,2]
[381133878,1756065050200,-151.0,0.00021661,2]
[381133881,1756065050210,-257.016,0.00021661,2]
[381133883,1756065050220,-257.016,0.00021661,2]
[381133885,1756065050231,-151.0,0.00021661,2]
[381133887,1756065050240,-257.016,0.00021661,2]
[381133889,1756065050250,-257.016,0.00021661,2]
[381133891,1756065050260,-151.0,0.00021661,2]
[381133893,1756065050270,-151.0,0.00021661,2]
[381133895,1756065050279,-151.0,0.00021661,2]
[381133897,1756065050289,-151.0,0.00021661,2]
[381133899,1756065050300,-151.0,0.00021661,2]
[381133901,1756065050310,-887.171803,0.00021661,2]
[381133903,1756065050323,-887.171803,0.00021661,2]
[381133906,1756065050333,-887.171803,0.00021661,2]
[381133908,1756065050346,-887.171803,0.00021661,2]
[381133910,1756065050356,-151.0,0.00021661,2]
[381133912,1756065050366,-738.309844,0.00021661,2]
[381133914,1756065050376,-151.0,0.00021661,2]
[381133916,1756065050386,-738.309844,0.00021661,2]
[381133918,1756065050396,-875.453252,0.00021661,2]
[381133920,1756065050406,-430.531182,0.00021661,2]
[381133922,1756065050415,-151.0,0.00021661,2]
[381133924,1756065050425,-100.28198968,0.00021661,2]
[381133926,1756065050440,-50.71801032,0.00021661,2]
[381133929,1756065050451,-229.18869621,0.00021661,2]
[381133931,1756065050463,-396.0,0.00021661,2]
[381133960,1756065050740,-294.33404,0.0002129,2]
[381133963,1756065050757,-58.21719696,0.0002129,2]
[381133965,1756065050767,-113.12114779,0.00021661,2]
[381133967,1756065050777,-875.453252,0.00021661,2]
[381133969,1756065050787,-151.0,0.00021661,2]
[381133971,1756065050797,-22.14917777,0.00021661,2]
[381134061,1756065051651,-500.0,0.00016733,2]
[381134063,1756065051661,-6238.10527636,0.00021242,2]
[381134065,1756065051678,-2206.29129566,0.00021242,2]
[381134069,1756065051699,-451.65,0.00021242,2]
[381134071,1756065051710,-1480.22100655,0.00021242,2]
[381134073,1756065051722,-1212.45272466,0.00021242,2]
[381134076,1756065051742,-16427.67980536,0.00021242,2]
[381134079,1756065051754,-2927.925,0.00021242,2]
[381134081,1756065051765,-1123.242,0.00021242,2]
[381134084,1756065051785,-45825.60351595,0.00021242,2]
[381134086,1756065051796,-518.64385423,0.00021242,2]
[381134089,1756065051808,-3957.13236735,0.00021242,2]
[381134091,1756065051819,-14.96692549,0.00021281,2]
[381134094,1756065051838,-597.6214664,0.00021281,2]
[381134096,1756065051851,-271.176,0.00021281,2]
[381134098,1756065051862,-2763.03939604,0.00021281,2]
[381134100,1756065051874,-56371.22168767,0.00021281,2]
[381134182,1756065052658,-867.20893449,0.00021281,2]
[381134184,1756065052670,-2486.17151208,0.00021281,2]
[381134186,1756065052681,-1204.71861098,0.00021281,2]
[381134188,1756065052692,-3941.2319808,0.00021281,2]
[381134193,1756065052724,-265.90000001,0.00021281,2]
[381134195,1756065052736,-8075.84639096,0.00021281,2]
[381134197,1756065052747,-2418.327,0.00021281,2]
[381134199,1756065052758,-2272.27,0.00021281,2]
[381134203,1756065052786,-819.2469412,0.00021281,2]
[381134205,1756065052795,-1438.7530588,0.00021287,2]
[381134414,1756065055863,-80930.19378732,0.00021287,2]
[381134416,1756065055873,-9224.75668413,0.00021313,2]
[381134418,1756065055884,-3149.99937027,0.00021313,2]
[381134419,1756065055895,-69994.19079172,0.00021313,2]
[381134420,1756065055904,-82368.94684612,0.00021315,2]
[381134421,1756065055913,-289.43138153,0.00021331,2]
[381134422,1756065055923,-82368.94684612,0.00021365,2]
[381134423,1756065055935,-48578.64902996,0.00021385,2]
[381134424,1756065055965,-377.04647521,0.00021385,2]
[381134425,1756065055976,-2443.4448548,0.00021385,2]
[381134458,1756065056351,-30969.80648615,0.00021385,2]
[381134460,1756065056360,-408.38200423,0.00021661,2]
[381134462,1756065056370,-151.0,0.00021661,2]
[381134464,1756065056379,-151.0,0.00021661,2]
[381134466,1756065056389,-738.309844,0.00021661,2]
[381134468,1756065056398,-875.453252,0.00021661,2]
[381134470,1756065056407,-430.531182,0.00021661,2]
[381134472,1756065056416,-875.453252,0.00021661,2]
[381134474,1756065056425,-430.531182,0.00021661,2]
[381134476,1756065056434,-360.188225,0.00021661,2]
[381134478,1756065056444,-360.188225,0.00021661,2]
[381134480,1756065056453,-360.188225,0.00021661,2]
[381134482,1756065056462,-159.974277,0.00021661,2]
[381134484,1756065056472,-360.188225,0.00021661,2]
[381134486,1756065056481,-159.974277,0.00021661,2]
[381134488,1756065056490,-159.974277,0.00021661,2]
[381134490,1756065056499,-159.974277,0.00021661,2]
[381134492,1756065056508,-169.148068,0.00021661,2]
[381134494,1756065056518,-169.148068,0.00021661,2]
[381134496,1756065056528,-169.148068,0.00021661,2]
[381134497,1756065056537,-151.0,0.00021661,2]
[381134499,1756065056546,-169.148068,0.00021661,2]
[381134500,1756065056556,-151.0,0.00021661,2]
[381134501,1756065056565,-356.666658,0.00021661,2]